lending/lending_fUSD_20240610
["ID","MTS","AMOUNT","RATE_DAILY","PERIOD"]
[328961515,1718032236308,-150.0,0.00029007,2]
[328961516,1718032236318,-4610.3336856,0.00029013,2]
[328961517,1718032236328,-150.0,0.00029015,2]
[328961518,1718032236337,-151.93,0.00029021,2]
[328961519,1718032236346,-150.0,0.00029021,2]
[328961520,1718032236355,-7072.49670706,0.00029026,2]
[328961521,1718032236364,-20584.2075112,0.00029031,2]
[328961522,1718032236374,-57428.0661566,0.00029031,2]
[328961523,1718032236384,-4793.5915409,0.00029031,2]
[328961524,1718032236393,-1677.9814651,0.00029031,2]
[328961525,1718032236403,-1030.2893772,0.00029031,2]
[328961526,1718032236413,-177.37658849,0.00029031,2]
[328961527,1718032236423,-264.55447441,0.00029037,2]
[328961528,1718032236433,-155.0,0.00029037,2]
[328961529,1718032236442,-213.9871697,0.00029037,2]
[328961530,1718032236452,-320.14584657,0.00029037,2]
[328961531,1718032236462,-160.54086438,0.00029037,2]
[328961532,1718032236472,-1400.60780106,0.00029037,2]
[328961533,1718032236482,-224.94452493,0.00029037,2]
[328961534,1718032236491,-165.24095706,0.00029038,2]
[328961535,1718032236501,-157158.09585214,0.00029038,13]
[328961536,1718032236511,-208.9443675,0.00029039,2]
[328961537,1718032236521,-5895.19145889,0.00029039,2]
[328961538,1718032236531,-572.89771205,0.00029039,2]
[328961539,1718032236541,-263.76013277,0.00029039,2]
[328961540,1718032236551,-235.62062315,0.00029039,2]
[328961541,1718032236561,-342.49142395,0.00029039,2]
[328961542,1718032236571,-361.36781128,0.00029039,2]
[328961543,1718032236581,-1489.78467668,0.00029039,2]
[328961544,1718032236591,-461.76863275,0.00029039,2]
[328961545,1718032236601,-4185.21200345,0.00029039,2]
[328961546,1718032236611,-164.53292909,0.00029039,2]
[328961547,1718032236620,-157.38766626,0.00029039,2]
[328961548,1718032236629,-317.11697702,0.00029039,2]
[328961549,1718032236639,-27816.57173461,0.00029039,2]
[328961550,1718032236648,-157.47616147,0.00029039,2]
[328961551,1718032236662,-155.0,0.00029039,2]
[328961552,1718032236671,-4443.30606049,0.00029039,2]
[328961553,1718032236681,-1779.87597909,0.00029039,2]
[328961554,1718032236690,-216.91144525,0.00029039,2]
[328961555,1718032236700,-2485.09344287,0.00029039,2]
[328961556,1718032236709,-1980.83866895,0.00029039,2]
[328961557,1718032236720,-19700.729651,0.00029039,2]
[328961558,1718032236730,-706.32929204,0.00029039,2]
[328961559,1718032236742,-883.03899572,0.00029039,2]
[328961560,1718032236752,-428.29639569,0.00029039,2]
[328961561,1718032236763,-658.62502392,0.00029039,2]
[328961562,1718032236773,-324.02522433,0.00029039,2]
[328961563,1718032236783,-459.81006379,0.00029039,2]
[328961564,1718032236793,-714.03763505,0.00029039,2]
[328961565,1718032236802,-155.0,0.00029039,2]
[328961566,1718032236813,-184.79967976,0.00029039,2]
[328961567,1718032236822,-448.20174494,0.00029039,2]
[328961568,1718032236835,-276.70792554,0.00029039,2]
[328961569,1718032236845,-229.00475518,0.00029039,2]
[328961570,1718032236855,-221123.7279159,0.00029039,2]
[328961571,1718032236872,-252633.32464804,0.00029039,2]
[328961572,1718032236882,-345.61502096,0.00029039,2]
[328961573,1718032236998,-204.30812187,0.00029039,2]
[328961574,1718032237024,-180.62965088,0.00029039,2]
[328961575,1718032237034,-160.11276068,0.00029039,2]
[328961576,1718032237044,-261.19672657,0.00029039,2]
[328961577,1718032237054,-626.94963818,0.00029039,2]
[328961578,1718032237065,-827.48757697,0.00029039,2]
[328961579,1718032237077,-155.71614936,0.00029039,2]
[328961580,1718032237087,-321.83343734,0.00029039,2]
[328961581,1718032237098,-155.0,0.00029039,2]
[328961582,1718032237107,-173.89528786,0.00029039,2]
[328961583,1718032237118,-155.0,0.00029039,2]
[328961584,1718032237129,-6253.29174589,0.00029039,2]
[328961585,1718032237139,-256.59095034,0.00029039,2]
[328961586,1718032237149,-157.38545978,0.00029039,2]
[328961587,1718032237159,-411.24369396,0.00029039,2]
[328961588,1718032237170,-994.57083831,0.00029039,2]
[328961589,1718032237187,-653.04,0.00029039,2]
[328961590,1718032237199,-530.44,0.00029039,2]
[328961591,1718032237460,-612.0,0.00024364,2]
[328961592,1718032237471,-114.08977696,0.00029039,2]
[328961593,1718032237483,-1134.57912358,0.00029039,2]
[328961594,1718032237493,-227.96337563,0.00029039,2]
[328961595,1718032237506,-443.7326138,0.00029039,2]
[328961597,1718032239191,-112.89143684,0.00029039,2]
[328961599,1718032239203,-1479.16396653,0.00029039,2]
[328961600,1718032239214,-407.24197213,0.00029039,2]
[328961601,1718032239225,-3565.22156148,0.00029039,2]
[328961602,1718032239237,-155.0,0.00029039,2]
[328961603,1718032239248,-156.47913975,0.00029039,2]
[328961604,1718032239259,-529.82691404,0.00029039,2]
[328961605,1718032239270,-217.1710123,0.00029039,2]
[328961606,1718032239281,-250.16489583,0.00029039,2]
[328961607,1718032239292,-162.52861424,0.00029039,2]
[328961608,1718032239303,-156.64079964,0.00029039,2]
[328961610,1718032239314,-155.0,0.00029039,2]
[328961611,1718032239324,-170.69238991,0.00029039,2]
[328961613,1718032239338,-166.72253563,0.00029039,2]
[328961614,1718032239349,-178.3550662,0.00029039,2]
[328961616,1718032239361,-176.41950673,0.00029039,2]
[328961617,1718032239372,-155.0,0.00029039,2]
[328961618,1718032239384,-179.9474479,0.00029039,2]
[328961619,1718032239394,-235.97802269,0.00029039,2]
[328961620,1718032239404,-155.17031669,0.00029039,2]
[328961621,1718032239415,-156.45668317,0.00029039,2]
[328961622,1718032239426,-155.78676667,0.00029039,2]
[328961623,1718032239438,-306.53561288,0.00029039,2]
[328961624,1718032239448,-155.41908413,0.00029039,2]
[328961625,1718032239458,-208.9116436,0.00029039,2]
[328961626,1718032239468,-172.13878346,0.00029039,2]
[328961627,1718032239478,-3882.38993695,0.00029039,2]
[328961628,1718032239488,-156.85861452,0.00029039,2]
[328961629,1718032239499,-179.89516541,0.00029039,2]
[328961630,1718032239511,-359.43451956,0.00029039,2]
[328961631,1718032239522,-241.59005071,0.00029039,2]
[328961632,1718032239533,-267.4481888,0.00029039,2]
[328961633,1718032239544,-306.51547453,0.00029039,2]
[328961634,1718032239555,-1531.67403765,0.00029039,2]
[328961635,1718032239566,-370.9285916,0.00029039,2]
[328961636,1718032239577,-2812.90167299,0.00029039,2]
[328961637,1718032239589,-155.35331114,0.00029039,2]
[328961638,1718032239599,-480.88976442,0.00029039,2]
[328961639,1718032239609,-790.98303269,0.00029039,2]
[328961640,1718032239620,-1230.68671206,0.00029039,2]
[328961641,1718032239630,-155.0,0.00029039,2]
[328961642,1718032239640,-446.80079403,0.00029039,2]
[328961643,1718032239651,-1065.03787148,0.00029039,2]
[328961644,1718032239664,-205.60285074,0.0002904,2]
[328961645,1718032239674,-10973.78387867,0.0002904,2]
[328961646,1718032239684,-14005.92,0.0002904,2]
[328961647,1718032239695,-506.50538559,0.00029041,4]
[328961648,1718032239705,-512.25996878,0.00029041,4]
[328961649,1718032239716,-502.97243445,0.00029041,4]
[328961650,1718032239726,-258.0384721,0.00029041,2]
[328961651,1718032239737,-1204.22599662,0.00029041,2]
[328961652,1718032239748,-529.8566995,0.00029041,4]
[328961653,1718032239758,-500.0,0.00029041,4]
[328961654,1718032239768,-500.0,0.00029041,4]
[328961655,1718032239778,-500.0,0.00029041,4]
[328961656,1718032239789,-500.0,0.00029041,4]
[328961657,1718032239800,-500.0,0.00029041,4]
[328961658,1718032239811,-500.0,0.00029041,4]
[328961659,1718032239821,-500.0,0.00029041,4]
[328961660,1718032239833,-615.38171206,0.00029041,4]
[328961661,1718032239844,-500.0,0.00029041,4]
[328961662,1718032239855,-500.0,0.00029041,4]
[328961663,1718032239865,-504.25883328,0.00029041,4]
[328961664,1718032239876,-500.0,0.00029041,4]
[328961665,1718032239887,-500.0,0.00029041,4]
[328961666,1718032239898,-500.0,0.00029041,4]
[328961667,1718032239908,-500.0,0.00029041,4]
[328961668,1718032239918,-500.0,0.00029041,4]
[328961669,1718032239928,-500.0,0.00029041,4]
[328961670,1718032239939,-521.09972603,0.00029041,4]
[328961671,1718032239949,-500.0,0.00029041,4]
[328961672,1718032239959,-500.0,0.00029041,4]
[328961673,1718032239970,-174.55519447,0.00029041,4]
[328961674,1718032239981,-500.0,0.00029041,4]
[328961675,1718032239992,-500.0,0.00029041,4]
[328961676,1718032240003,-500.0,0.00029041,4]
[328961677,1718032240014,-500.0,0.00029041,4]
[328961678,1718032240025,-500.0,0.00029041,4]
[328961679,1718032240035,-500.0,0.00029041,4]
[328961680,1718032240046,-500.0,0.00029041,4]
[328961681,1718032240056,-527.07001103,0.00029041,4]
[328961682,1718032240067,-500.0,0.00029041,4]
[328961683,1718032240078,-500.0,0.00029041,4]
[328961684,1718032240090,-374.98843788,0.00029041,4]
[328961685,1718032240101,-500.0,0.00029041,4]
[328961686,1718032240112,-500.0,0.00029041,4]
[328961687,1718032240123,-500.0,0.00029041,4]
[328961688,1718032240133,-500.0,0.00029041,4]
[328961689,1718032240144,-500.0,0.00029041,4]
[328961690,1718032240154,-500.0,0.00029041,4]
[328961691,1718032240165,-500.0,0.00029041,4]
[328961692,1718032240181,-500.0,0.00029041,4]
[328961693,1718032240192,-500.0,0.00029041,4]
[328961694,1718032240204,-500.0,0.00029041,4]
[328961695,1718032240215,-500.0,0.00029041,4]
[328961696,1718032240226,-500.0,0.00029041,4]
[328961697,1718032240237,-500.0,0.00029041,4]
[328961698,1718032240248,-500.0,0.00029041,4]
[328961699,1718032240259,-500.0,0.00029041,4]
[328961700,1718032240270,-500.0,0.00029041,4]
[328961701,1718032240280,-500.0,0.00029041,4]
[328961702,1718032240291,-500.0,0.00029041,4]
[328961703,1718032240302,-500.0,0.00029041,4]
[328961704,1718032240313,-500.0,0.00029041,4]
[328961705,1718032240324,-500.0,0.00029041,4]
[328961706,1718032240335,-500.0,0.00029041,4]
[328961707,1718032240346,-500.0,0.00029041,4]
[328961708,1718032240356,-500.0,0.00029041,4]
[328961709,1718032240368,-433.77790591,0.00029041,4]
[328961710,1718032240380,-568.16701712,0.00029041,4]
[328961711,1718032240392,-500.0,0.00029041,4]
[328961712,1718032240404,-500.0,0.00029041,4]
[328961713,1718032240415,-500.0,0.00029041,4]
[328961714,1718032240426,-500.0,0.00029041,4]
[328961715,1718032240440,-500.0,0.00029041,4]
[328961716,1718032240451,-293.92746756,0.00029041,4]
[328961717,1718032240524,-206.07253244,0.00029041,4]
[328961718,1718032240536,-500.0,0.00029041,4]
[328961719,1718032240547,-500.0,0.00029041,4]
[328961720,1718032240559,-500.0,0.00029041,4]
[328961721,1718032240570,-478.37215979,0.00029041,4]
[328961722,1718032242604,-208.9443675,0.00029039,2]
[328961723,1718032242615,-2087.47656364,0.00029039,2]
[328961724,1718032242629,-1833.80391558,0.00029039,2]
[328961725,1718032242642,-1123.36499994,0.00029039,2]
[328961730,1718032245062,-250.21055924,0.00017259,2]
[328961731,1718032245073,-353.44,0.00028356,2]
[328961732,1718032245084,-150.0,0.00028356,2]
[328961733,1718032245094,-164.21,0.00028356,2]
[328961734,1718032245103,-758.76874223,0.00028824,2]
[328961735,1718032245113,-850.54597973,0.00029039,2]
[328961736,1718032245125,-240.28204481,0.0002904,2]
[328961737,1718032245135,-21.62784021,0.00029041,4]
[328961738,1718032245144,-500.0,0.00029041,4]
[328961739,1718032245154,-500.0,0.00029041,4]
[328961740,1718032245165,-500.0,0.00029041,4]
[328961741,1718032245175,-500.0,0.00029041,4]
[328961742,1718032245187,-35.68265519,0.00029041,4]
[328961743,1718032245202,-464.31734481,0.00029041,4]
[328961744,1718032245212,-530.46508473,0.00029041,4]
[328961745,1718032245222,-500.0,0.00029041,4]
[328961746,1718032245232,-500.0,0.00029041,4]
[328961747,1718032245242,-500.0,0.00029041,4]
[328961748,1718032245252,-500.0,0.00029041,4]
[328961749,1718032245261,-500.0,0.00029041,4]
[328961750,1718032245271,-500.0,0.00029041,4]
[328961751,1718032245281,-500.0,0.00029041,4]
[328961752,1718032245291,-500.0,0.00029041,4]
[328961753,1718032245301,-292.19545033,0.00029041,4]
[328961754,1718032245310,-312.76355842,0.00029041,4]
[328961755,1718032245319,-500.0,0.00029041,4]
[328961756,1718032245329,-500.0,0.00029041,4]
[328961757,1718032245340,-500.0,0.00029041,4]
[328961758,1718032245349,-554.38735236,0.00029041,4]
[328961759,1718032245358,-500.0,0.00029041,4]
[328961760,1718032245368,-500.0,0.00029041,4]
[328961761,1718032245378,-604.44646398,0.00029041,4]
[328961762,1718032245388,-500.0,0.00029041,4]
[328961763,1718032245399,-500.0,0.00029041,4]
[328961764,1718032245409,-500.0,0.00029041,4]
[328961765,1718032245420,-500.0,0.00029041,4]
[328961766,1718032245430,-500.0,0.00029041,4]
[328961767,1718032245440,-500.0,0.00029041,4]
[328961768,1718032245450,-321.39420819,0.00029041,4]
[328961769,1718032245461,-500.0,0.00029041,4]
[328961770,1718032245471,-500.0,0.00029041,4]
[328961771,1718032245481,-500.0,0.00029041,4]
[328961772,1718032245491,-500.0,0.00029041,4]
[328961773,1718032245501,-500.0,0.00029041,4]
[328961774,1718032245511,-540.11189424,0.00029041,4]
[328961775,1718032245521,-500.0,0.00029041,4]
[328961776,1718032245531,-500.0,0.00029041,4]
[328961777,1718032245542,-500.0,0.00029041,4]
[328961778,1718032245552,-500.0,0.00029041,4]
[328961779,1718032245563,-500.0,0.00029041,4]
[328961780,1718032245573,-500.0,0.00029041,4]
[328961781,1718032245585,-500.0,0.00029041,4]
[328961782,1718032245595,-500.0,0.00029041,4]
[328961783,1718032245605,-500.0,0.00029041,4]
[328961784,1718032245616,-457.19187442,0.00029041,4]
[328961785,1718032245626,-500.0,0.00029041,4]
[328961786,1718032245636,-500.0,0.00029041,4]
[328961787,1718032245647,-500.0,0.00029041,4]
[328961788,1718032245662,-500.0,0.00029041,4]
[328961789,1718032245672,-500.0,0.00029041,4]
[328961790,1718032245682,-500.0,0.00029041,4]
[328961791,1718032245692,-500.0,0.00029041,4]
[328961792,1718032245704,-500.0,0.00029041,4]
[328961793,1718032245714,-500.0,0.00029041,4]
[328961794,1718032245723,-512.21415679,0.00029041,4]
[328961795,1718032245736,-500.0,0.00029041,4]
[328961796,1718032245746,-500.0,0.00029041,4]
[328961797,1718032245756,-152.157222,0.00029041,7]
[328961798,1718032245766,-500.0,0.00029041,4]
[328961799,1718032245776,-500.0,0.00029041,4]
[328961800,1718032245786,-500.0,0.00029041,4]
[328961801,1718032245796,-514.81191237,0.00029041,4]
[328961802,1718032245806,-500.0,0.00029041,4]
[328961803,1718032245816,-500.0,0.00029041,4]
[328961804,1718032245826,-532.04363829,0.00029041,4]
[328961805,1718032245837,-525.25379769,0.00029041,4]
[328961806,1718032245847,-500.0,0.00029041,4]
[328961807,1718032245857,-500.0,0.00029041,4]
[328961808,1718032245866,-500.0,0.00029041,4]
[328961809,1718032245877,-500.0,0.00029041,4]
[328961810,1718032245887,-500.0,0.00029041,4]
[328961811,1718032245897,-549.62526954,0.00029041,4]
[328961812,1718032245907,-500.0,0.00029041,4]
[328961814,1718032245918,-500.0,0.00029041,4]
[328961815,1718032245928,-500.0,0.00029041,4]
[328961816,1718032245938,-500.0,0.00029041,4]
[328961817,1718032245948,-500.0,0.00029041,4]
[328961818,1718032246101,-500.0,0.00029041,4]
[328961819,1718032246111,-500.0,0.00029041,4]
[328961820,1718032246122,-500.0,0.00029041,4]
[328961821,1718032246133,-500.0,0.00029041,4]
[328961822,1718032246142,-500.0,0.00029041,4]
[328961823,1718032246153,-543.41421353,0.00029041,4]
[328961824,1718032246163,-500.0,0.00029041,4]
[328961825,1718032246174,-500.0,0.00029041,4]
[328961826,1718032246187,-500.0,0.00029041,4]
[328961827,1718032246198,-269.36144997,0.00029041,4]
[328961828,1718032246208,-512.36107241,0.00029041,4]
[328961829,1718032246218,-612.39452773,0.00029041,4]
[328961830,1718032246228,-500.0,0.00029041,4]
[328961831,1718032246239,-500.0,0.00029041,4]
[328961832,1718032246251,-534.99210286,0.00029041,4]
[328961833,1718032246262,-500.0,0.00029041,4]
[328961834,1718032246273,-500.0,0.00029041,4]
[328961835,1718032246284,-500.0,0.00029041,4]
[328961836,1718032246295,-500.0,0.00029041,4]
[328961837,1718032246306,-500.0,0.00029041,4]
[328961838,1718032246317,-500.0,0.00029041,4]
[328961839,1718032246327,-500.0,0.00029041,4]
[328961840,1718032246339,-500.0,0.00029041,4]
[328961841,1718032246349,-500.0,0.00029041,4]
[328961842,1718032246359,-500.0,0.00029041,4]
[328961843,1718032246372,-500.0,0.00029041,4]
[328961844,1718032246382,-500.0,0.00029041,4]
[328961845,1718032246392,-500.0,0.00029041,4]
[328961846,1718032246403,-500.0,0.00029041,4]
[328961847,1718032246413,-500.0,0.00029041,4]
[328961848,1718032246424,-500.0,0.00029041,4]
[328961849,1718032246434,-514.48809878,0.00029041,4]
[328961850,1718032246445,-508.75012987,0.00029041,4]
[328961851,1718032246456,-500.0,0.00029041,4]
[328961852,1718032246467,-500.0,0.00029041,4]
[328961853,1718032246477,-500.0,0.00029041,4]
[328961854,1718032246487,-500.0,0.00029041,4]
[328961855,1718032246498,-500.0,0.00029041,4]
[328961856,1718032246508,-500.0,0.00029041,4]
[328961857,1718032246519,-500.0,0.00029041,4]
[328961858,1718032246529,-500.0,0.00029041,4]
[328961859,1718032246540,-500.0,0.00029041,4]
[328961860,1718032246550,-500.0,0.00029041,4]
[328961861,1718032246561,-500.0,0.00029041,4]
[328961862,1718032246571,-500.0,0.00029041,4]
[328961863,1718032246581,-638.60557148,0.00029041,4]
[328961864,1718032246594,-500.0,0.00029041,4]
[328961865,1718032246606,-556.3382953,0.00029041,4]
[328961866,1718032246616,-500.0,0.00029041,4]
[328961867,1718032246627,-500.0,0.00029041,4]
[328961868,1718032246638,-500.0,0.00029041,4]
[328961870,1718032246648,-500.0,0.00029041,4]
[328961872,1718032246658,-571.90989034,0.00029041,4]
[328961874,1718032246673,-500.0,0.00029041,4]
[328961876,1718032246683,-500.0,0.00029041,4]
[328961878,1718032246694,-500.0,0.00029041,4]
[328961880,1718032246706,-294.404103,0.00029041,4]
[328961882,1718032246716,-500.0,0.00029041,4]
[328961884,1718032246726,-524.35996896,0.00029041,4]
[328961886,1718032246736,-500.0,0.00029041,4]
[328961888,1718032246747,-500.0,0.00029041,4]
[328961890,1718032246759,-500.0,0.00029041,4]
[328961892,1718032246769,-500.0,0.00029041,4]
[328961894,1718032246780,-519.76525495,0.00029041,4]
[328961895,1718032246791,-500.0,0.00029041,4]
[328961897,1718032246801,-500.0,0.00029041,4]
[328961898,1718032246811,-500.0,0.00029041,4]
[328961900,1718032246822,-500.0,0.00029041,4]
[328961902,1718032246834,-500.0,0.00029041,4]
[328961903,1718032246844,-500.0,0.00029041,4]
[328961904,1718032246855,-500.0,0.00029041,4]
[328961905,1718032246866,-500.0,0.00029041,4]
[328961906,1718032246876,-500.0,0.00029041,4]
[328961907,1718032246886,-500.0,0.00029041,4]
[328961908,1718032246896,-500.0,0.00029041,4]
[328961909,1718032246907,-500.0,0.00029041,4]
[328961910,1718032246918,-500.0,0.00029041,4]
[328961911,1718032246928,-518.17206211,0.00029041,4]
[328961912,1718032246939,-500.0,0.00029041,4]
[328961913,1718032246949,-500.0,0.00029041,4]
[328961914,1718032246960,-500.0,0.00029041,4]
[328961915,1718032246970,-500.0,0.00029041,4]
[328961916,1718032246980,-500.0,0.00029041,4]
[328961917,1718032246990,-500.0,0.00029041,4]
[328961918,1718032247000,-151.0,0.00029041,7]
[328961919,1718032247010,-151.0,0.00029041,7]
[328961920,1718032247020,-151.0,0.00029041,7]
[328961921,1718032247030,-151.0,0.00029041,7]
[328961922,1718032247040,-151.0,0.00029041,7]
[328961923,1718032247051,-151.0,0.00029041,7]
[328961924,1718032247062,-500.0,0.00029041,4]
[328961925,1718032247072,-151.0,0.00029041,7]
[328961926,1718032247083,-500.0,0.00029041,4]
[328961927,1718032247094,-151.0,0.00029041,7]
[328961928,1718032247104,-500.0,0.00029041,4]
[328961929,1718032247114,-500.0,0.00029041,4]
[328961930,1718032247124,-500.0,0.00029041,4]
[328961931,1718032247134,-151.0,0.00029041,7]
[328961932,1718032247144,-500.0,0.00029041,4]
[328961933,1718032247154,-500.0,0.00029041,4]
[328961934,1718032247164,-500.0,0.00029041,4]
[328961935,1718032247179,-500.0,0.00029041,4]
[328961936,1718032247189,-500.0,0.00029041,4]
[328961937,1718032247199,-500.0,0.00029041,4]
[328961938,1718032247210,-500.0,0.00029041,4]
[328961939,1718032247220,-500.0,0.00029041,4]
[328961940,1718032247229,-500.0,0.00029041,4]
[328961941,1718032247240,-500.0,0.00029041,4]
[328961942,1718032247250,-500.0,0.00029041,4]
[328961943,1718032247260,-500.0,0.00029041,4]
[328961944,1718032247271,-469.19868207,0.00029041,4]
[328961945,1718032247281,-500.0,0.00029041,4]
[328961946,1718032247291,-500.0,0.00029041,4]
[328961947,1718032247302,-500.0,0.00029041,4]
[328961948,1718032247312,-500.0,0.00029041,4]
[328961949,1718032247323,-500.0,0.00029041,4]
[328961950,1718032247333,-500.0,0.00029041,4]
[328961951,1718032247346,-500.0,0.00029041,4]
[328961952,1718032247356,-500.0,0.00029041,4]
[328961953,1718032247368,-500.0,0.00029041,4]
[328961954,1718032247378,-500.0,0.00029041,4]
[328961955,1718032247388,-500.0,0.00029041,4]
[328961956,1718032247399,-500.0,0.00029041,4]
[328961957,1718032247409,-500.0,0.00029041,4]
[328961958,1718032247420,-500.0,0.00029041,4]
[328961959,1718032247430,-500.0,0.00029041,4]
[328961960,1718032247441,-500.0,0.00029041,4]
[328961961,1718032247451,-500.0,0.00029041,4]
[328961962,1718032247462,-500.0,0.00029041,4]
[328961963,1718032247472,-301.89413844,0.00029041,4]
[328961964,1718032247483,-500.0,0.00029041,4]
[328961965,1718032247494,-500.0,0.00029041,4]
[328961966,1718032247505,-500.0,0.00029041,4]
[328961967,1718032247515,-500.0,0.00029041,4]
[328961968,1718032247526,-500.0,0.00029041,4]
[328961969,1718032247536,-500.0,0.00029041,4]
[328961970,1718032247547,-500.0,0.00029041,4]
[328961971,1718032247558,-500.0,0.00029041,4]
[328961972,1718032247569,-500.0,0.00029041,4]
[328961973,1718032247580,-500.0,0.00029041,4]
[328961974,1718032247591,-500.0,0.00029041,4]
[328961975,1718032247601,-500.0,0.00029041,4]
[328961976,1718032247612,-500.0,0.00029041,4]
[328961977,1718032247622,-500.0,0.00029041,4]
[328961978,1718032247633,-500.0,0.00029041,4]
[328961979,1718032247643,-250.05725538,0.00029041,4]
[328961980,1718032247654,-500.0,0.00029041,4]
[328961981,1718032247667,-500.0,0.00029041,4]
[328961982,1718032247677,-500.0,0.00029041,4]
[328961983,1718032247688,-500.0,0.00029041,4]
[328961984,1718032247699,-500.0,0.00029041,4]
[328961985,1718032247709,-500.0,0.00029041,4]
[328961986,1718032247720,-500.0,0.00029041,4]
[328961987,1718032247730,-500.0,0.00029041,4]
[328961988,1718032247742,-500.0,0.00029041,4]
[328961989,1718032247753,-500.0,0.00029041,4]
[328961990,1718032247764,-500.0,0.00029041,4]
[328961991,1718032247774,-407.20124643,0.00029041,4]
[328961992,1718032247784,-500.0,0.00029041,4]
[328961993,1718032247794,-500.0,0.00029041,4]
[328961994,1718032247804,-500.0,0.00029041,4]
[328961995,1718032247815,-470.33924713,0.00029041,4]
[328961996,1718032247826,-500.0,0.00029041,4]
[328961997,1718032247837,-500.0,0.00029041,4]
[328961998,1718032247847,-500.0,0.00029041,4]
[328961999,1718032247857,-500.0,0.00029041,4]
[328962000,1718032247868,-500.0,0.00029041,4]
[328962001,1718032247878,-500.0,0.00029041,4]
[328962002,1718032247888,-500.0,0.00029041,4]
[328962003,1718032247898,-550.33114636,0.00029041,4]
[328962004,1718032247908,-500.0,0.00029041,4]
[328962005,1718032247918,-587.49744443,0.00029041,4]
[328962006,1718032247928,-500.0,0.00029041,4]
[328962007,1718032247937,-500.0,0.00029041,4]
[328962008,1718032247947,-500.0,0.00029041,4]
[328962009,1718032247957,-500.0,0.00029041,4]
[328962010,1718032247967,-500.0,0.00029041,4]
[328962011,1718032247977,-500.0,0.00029041,4]
[328962012,1718032247987,-500.0,0.00029041,4]
[328962013,1718032247998,-500.0,0.00029041,4]
[328962014,1718032248008,-370.26547153,0.00029041,4]
[328962015,1718032248018,-500.0,0.00029041,4]
[328962016,1718032248028,-500.0,0.00029041,4]
[328962017,1718032248039,-500.0,0.00029041,4]
[328962018,1718032248050,-500.0,0.00029041,4]
[328962019,1718032248060,-546.46220347,0.00029041,4]
[328962020,1718032248070,-500.0,0.00029041,4]
[328962021,1718032248080,-500.0,0.00029041,4]
[328962022,1718032248091,-500.0,0.00029041,4]
[328962023,1718032248101,-500.0,0.00029041,4]
[328962024,1718032248110,-500.0,0.00029041,4]
[328962025,1718032248121,-500.0,0.00029041,4]
[328962026,1718032248131,-500.0,0.00029041,4]
[328962027,1718032248140,-500.0,0.00029041,4]
[328962028,1718032248152,-500.0,0.00029041,4]
[328962029,1718032248162,-500.0,0.00029041,4]
[328962030,1718032248173,-500.0,0.00029041,4]
[328962031,1718032248188,-500.0,0.00029041,4]
[328962032,1718032248198,-500.0,0.00029041,4]
[328962033,1718032248209,-500.0,0.00029041,4]
[328962034,1718032248219,-500.0,0.00029041,4]
[328962035,1718032248230,-369.30231927,0.00029041,4]
[328962036,1718032248239,-500.0,0.00029041,4]
[328962037,1718032248250,-238.64080058,0.00029041,4]
[328962038,1718032248260,-500.0,0.00029041,4]
[328962039,1718032248271,-500.0,0.00029041,4]
[328962040,1718032248280,-500.0,0.00029041,4]